bitfinex/quotes_ETHUSD_20251118
["timestamp","ask_amount","ask_price","bid_price","bid_amount"]
[1763493027426,4.21278002,3166.6,3166.5,0.001]
[1763493027727,1.95565268,3166.6,3166.5,0.001]
[1763493028825,1.04866004,3166.6,3166.5,0.001]
[1763493029025,0.37046264,3166.6,3166.5,0.001]
[1763493029229,0.29436264,3166.6,3166.5,0.4851]
[1763493029523,0.29436264,3166.6,3166.5,0.001]
[1763493030034,0.29436264,3166.6,3166.5,0.4851]
[1763493030202,0.29436264,3166.6,3166.5,0.952]
[1763493030401,1.5210145,3167.1,3166.5,0.952]
[1763493030402,0.29436264,3167.0,3166.5,0.952]
[1763493030614,0.8428171,3167.5,3166.6,0.4669]
[1763493030820,0.29585252,3167.4,3167.0,0.4841]
[1763493031035,0.29585252,3167.3,3167.0,0.4841]
[1763493031207,0.29585252,3167.2,3167.0,0.4841]
[1763493031409,0.37195252,3167.1,3166.5,0.001]
[1763493031610,0.29585252,3167.0,3166.5,0.001]
[1763493031852,0.29585252,3167.0,3166.5,0.4679]
[1763493032044,0.29585252,3167.0,3166.9,0.4841]
[1763493032232,0.29585252,3167.5,3166.5,0.4679]
[1763493032438,0.29585252,3167.4,3166.5,0.4679]
[1763493032738,0.29585252,3167.3,3166.5,0.4679]
[1763493032943,0.29585252,3167.2,3166.5,0.4679]
[1763493033147,0.29585252,3167.1,3166.5,0.4679]
[1763493033347,0.29585252,3167.0,3166.5,0.4679]
[1763493033547,0.26573447,3167.5,3166.5,0.4679]
[1763493033548,0.29585252,3166.9,3166.5,0.4679]
[1763493033744,0.29585252,3167.4,3166.5,0.4679]
[1763493033950,1.52456075,3167.8,3166.6,1.695504]
[1763493034125,0.85417957,3168.0,3167.1,1.31249664]
[1763493034324,0.002,3168.0,3167.3,0.405504]
[1763493034529,0.002,3168.0,3167.5,0.405504]
[1763493034730,0.002,3168.0,3167.2,0.405504]
[1763493035054,0.002,3168.0,3167.2,1.06319983]
[1763493035253,0.002,3168.0,3167.1,0.90699264]
[1763493035254,0.002,3168.0,3167.4,0.405504]
[1763493035451,0.002,3168.0,3167.4,1.06319983]
[1763493037936,0.002,3168.0,3167.4,1.18976869]
[1763493038136,0.002,3168.0,3167.4,0.53207286]
[1763493040352,0.1915,3167.9,3166.2,6.81972883]
[1763493040546,0.1915,3167.9,3166.8,0.12659329]
[1763493040764,0.6743,3167.9,3166.2,6.81972883]
[1763493041153,0.4828,3167.8,3166.2,7.30252883]
[1763493041357,0.4828,3167.8,3166.2,6.81972883]
[1763493041897,0.4828,3167.8,3166.2,0.001]
[1763493042235,0.1915,3166.6,3166.2,0.001]
[1763493042435,0.4828,3167.8,3166.2,0.001]
[1763493042743,0.90699264,3167.6,3166.2,0.001]
[1763493042940,0.88953716,3167.5,3166.2,0.001]
[1763493043140,0.4749,3166.6,3166.2,0.001]
[1763493043455,0.4828,3167.4,3166.2,0.001]
[1763493043654,0.405504,3167.6,3166.2,0.001]
[1763493043951,1.31249664,3167.6,3166.2,0.001]
[1763493044128,3.8178,3167.5,3166.2,0.001]
[1763493044335,0.38178,3167.4,3166.2,0.001]
[1763493044544,0.4828,3167.4,3166.2,0.001]
[1763493048276,0.4828,3167.6,3166.2,0.001]
[1763493051679,0.6743,3167.9,3166.2,0.406504]
[1763493051895,0.4828,3167.8,3166.2,0.406504]
[1763493057907,0.4828,3167.8,3166.4,0.405504]
[1763493058270,0.1915,3167.9,3166.4,0.405504]
[1763493060206,0.002,3167.8,3166.4,0.405504]
[1763493061294,0.4828,3167.7,3166.4,0.405504]
[1763493061502,0.4828,3167.7,3166.2,0.001]
[1763493062505,0.4828,3167.7,3166.2,0.406504]
[1763493065875,0.4828,3167.7,3166.2,0.001]
[1763493067380,0.77746662,3167.7,3166.2,0.001]
[1763493067586,0.486,3166.6,3166.2,0.001]
[1763493067794,0.90699264,3166.5,3166.2,0.001]
[1763493067993,4.74803,3166.6,3165.8,0.001]
[1763493067994,0.486,3166.3,3165.8,0.001]
[1763493068224,0.6661,3165.9,3164.7,0.001]
[1763493068421,0.4709,3165.8,3164.7,0.001]
[1763493068993,0.1801,3165.9,3164.7,0.001]
[1763493069324,0.651,3165.9,3164.7,0.001]
[1763493069825,0.4709,3165.8,3164.7,0.001]
[1763493070525,0.68058791,3166.8,3165.0,0.03259557]
[1763493070526,0.1801,3166.2,3165.0,0.03259557]
[1763493070713,0.47556991,3166.2,3165.0,0.03259557]
[1763493070913,1.13781857,3167.3,3165.1,0.405504]
[1763493071211,0.1801,3166.4,3165.0,0.001]
[1763493072130,0.47555578,3166.4,3165.0,0.001]
[1763493072298,0.94645578,3166.4,3165.0,0.001]
[1763493072499,0.651,3166.4,3165.0,0.001]
[1763493072717,0.76625853,3166.3,3165.0,0.001]
[1763493073101,0.4709,3166.3,3165.0,0.001]
[1763493074499,0.1801,3166.4,3165.0,0.001]
[1763493074931,0.4709,3166.3,3165.0,0.001]
[1763493075502,0.1801,3166.4,3165.0,0.001]
[1763493075730,0.651,3166.4,3165.0,0.001]
[1763493076138,0.4709,3166.3,3165.0,0.001]
[1763493078461,0.4709,3167.3,3166.2,0.90699264]
[1763493078766,0.1801,3166.9,3165.7,0.405504]
[1763493079114,0.4709,3166.8,3165.7,0.405504]
[1763493079811,0.4709,3167.2,3165.7,0.405504]
[1763493080038,0.4709,3167.6,3166.1,1.31249664]
[1763493080246,0.4709,3167.6,3166.2,0.77361891]
[1763493084575,0.4709,3167.6,3165.7,0.405504]
[1763493085948,0.4709,3167.6,3166.0,6.42369242]
[1763493086945,0.76590934,3167.6,3166.0,6.42369242]
[1763493087470,0.4855,3167.5,3166.0,6.42369242]
[1763493088344,0.78050934,3167.5,3166.0,6.42369242]
[1763493088549,0.29500934,3167.4,3166.1,0.64236924]
[1763493088751,0.4855,3167.4,3166.1,0.64236924]
[1763493089147,0.78050934,3167.4,3166.1,0.64236924]
[1763493089360,0.78069453,3167.3,3166.1,0.64236924]
[1763493089560,0.4855,3167.3,3166.1,0.64236924]
[1763493089760,0.4855,3167.3,3166.0,6.42369242]
[1763493089761,0.4855,3167.3,3166.2,0.70660617]
[1763493089963,0.29519646,3167.5,3166.5,6.42369242]
[1763493090161,0.002,3167.7,3166.5,6.42369242]
[1763493090162,0.002,3167.7,3166.6,0.03157961]
[1763493090374,0.002,3167.7,3166.6,0.405504]
[1763493090942,0.002,3167.7,3167.1,0.405504]
[1763493091149,0.002,3167.7,3167.2,0.68291964]
[1763493092279,0.002,3167.7,3167.3,0.405504]
[1763493092447,0.002,3167.7,3167.6,0.405504]
[1763493092643,0.002,3168.2,3167.6,1.31249664]
[1763493093581,0.002,3168.4,3167.6,1.31249664]
[1763493093876,0.002,3168.4,3168.2,0.405504]
[1763493095362,0.002,3168.4,3168.2,1.31249664]
[1763493100208,0.469,3170.3,3168.7,1.31249664]
[1763493101681,0.1917,3170.7,3168.7,1.31249664]
[1763493101682,0.1917,3169.9,3168.7,1.31249664]
[1763493102135,0.6607,3169.9,3168.7,1.31249664]
[1763493102349,0.469,3169.5,3168.7,1.31249664]
[1763493102922,0.469,3169.8,3168.7,1.31249664]
[1763493103116,0.469,3169.8,3168.6,6.42369242]
[1763493103335,0.469,3169.8,3168.7,0.64236924]
[1763493104041,0.469,3169.5,3168.7,0.64236924]
[1763493104259,0.6545,3168.8,3168.7,0.64236924]
[1763493104427,0.469,3169.6,3168.2,6.42369242]
[1763493104610,0.469,3169.6,3167.7,0.77361891]
[1763493104611,0.6607,3169.9,3168.7,6.42369242]
[1763493105110,0.6607,3169.9,3168.8,0.405504]
[1763493105314,0.6607,3169.9,3168.9,0.68291964]
[1763493105510,0.1917,3169.9,3168.9,0.68291964]
[1763493105752,0.469,3169.3,3168.9,0.68291964]
[1763493105943,0.1917,3169.9,3168.9,0.68291964]
[1763493106149,0.469,3169.6,3168.9,0.68291964]
[1763493106659,0.469,3169.4,3168.7,6.42369242]
[1763493106827,0.469,3169.4,3168.4,0.90699264]
[1763493106828,0.471,3169.1,3168.5,0.405504]
[1763493107019,0.471,3169.1,3167.2,1.64997957]
[1763493107363,0.471,3169.1,3167.8,0.90699264]
[1763493107520,0.471,3169.1,3167.8,0.405504]
[1763493107719,0.471,3169.1,3168.2,6.42369242]
[1763493108467,0.002,3169.1,3168.3,0.405504]
[1763493108673,0.002,3169.1,3168.7,6.42369242]
[1763493108846,0.002,3169.1,3168.8,0.64236924]
[1763493111335,0.002,3169.1,3168.8,1.28230844]
[1763493112137,0.002,3169.1,3168.9,0.03155669]
[1763493112578,0.002,3169.1,3168.8,1.28230844]
[1763493114064,0.002,3169.5,3168.8,1.28230844]
[1763493114065,0.002,3169.5,3168.9,1.17610409]
[1763493114264,0.002,3169.5,3169.4,1.31249664]
[1763493114862,0.002,3169.5,3169.4,1.78149664]
[1763493115369,0.002,3169.8,3169.4,1.78149664]
[1763493117565,0.002,3169.8,3169.4,1.31249664]
[1763493117784,0.002,3169.8,3169.6,0.405504]
[1763493120098,0.1917,3170.7,3169.6,0.405504]
[1763493120303,0.1917,3170.8,3170.2,0.405504]
[1763493120505,0.1959,3171.3,3170.7,0.405504]
[1763493120877,0.469,3171.5,3170.7,0.874504]
[1763493121092,0.6607,3171.5,3170.9,0.405504]
[1763493121481,0.4628,3171.0,3170.7,0.405504]
[1763493121803,0.469,3171.4,3170.7,0.405504]
[1763493122701,0.469,3171.4,3170.5,0.94832722]
[1763493122702,0.6545,3170.8,3170.5,0.94832722]
[1763493122904,0.4628,3170.6,3170.3,0.405504]
[1763493123215,0.4628,3170.6,3170.3,1.17912291]
[1763493123416,0.6607,3170.8,3170.3,1.17912291]
[1763493124080,0.6607,3170.8,3170.3,1.81717967]
[1763493124283,0.6607,3170.8,3170.3,1.17912291]
[1763493124477,0.1917,3170.8,3170.3,1.17912291]
[1763493124800,0.1917,3170.8,3170.4,0.20861156]
[1763493125007,0.469,3171.1,3170.4,0.20861156]
[1763493125167,0.469,3171.1,3170.6,6.42369242]
[1763493125997,0.6607,3171.7,3170.7,1.31249664]
[1763493126187,1.32951857,3173.0,3171.1,6.42369242]
[1763493126188,0.1917,3173.0,3171.1,6.42369242]
[1763493126501,0.29427781,3172.0,3171.2,0.405504]
[1763493126718,0.67787948,3173.0,3171.9,6.42369242]
[1763493126899,0.84798726,3173.6,3172.8,0.90699264]
[1763493127081,0.4668,3173.7,3172.9,0.73306851]
[1763493128307,0.1883,3174.0,3173.0,0.405504]
[1763493128308,0.4668,3173.8,3173.0,0.405504]
[1763493128674,0.4668,3173.8,3172.9,1.19986851]
[1763493129110,0.4668,3173.8,3172.9,0.73306851]
[1763493129310,0.4668,3173.8,3173.0,0.16400612]
[1763493129676,0.4668,3173.8,3172.9,0.73306851]
[1763493130213,0.4547,3173.0,3170.7,3.79124984]
[1763493130395,0.4668,3173.8,3172.1,1.31249664]
[1763493130597,0.4668,3173.7,3172.5,0.405504]
[1763493131810,0.643,3172.6,3172.0,6.42369242]
[1763493132135,0.4547,3172.5,3172.1,0.90699264]
[1763493132311,0.4547,3172.5,3172.1,0.84197471]
[1763493132516,0.4547,3172.5,3169.9,1.31019408]
[1763493132517,0.4547,3172.1,3169.9,1.31019408]
[1763493132804,0.4547,3171.6,3171.1,0.4547]
[1763493133227,0.1883,3171.7,3171.1,0.4547]
[1763493133378,0.1883,3171.7,3170.9,0.405504]
[1763493133576,0.1883,3171.7,3170.7,6.42369242]
[1763493133876,0.6551,3171.7,3170.8,0.4668]
[1763493134078,0.6551,3171.7,3170.4,0.001]
[1763493134274,0.4668,3171.6,3170.4,0.001]
[1763493134678,0.1883,3171.7,3170.7,6.42369242]
[1763493135200,0.6551,3171.7,3170.8,0.405504]
[1763493135963,0.4668,3172.1,3171.3,0.405504]
[1763493136265,0.6551,3172.6,3171.5,0.405504]
[1763493136554,0.1883,3172.9,3171.8,1.31249664]
[1763493136712,0.1883,3172.9,3172.0,0.405504]
[1763493137166,0.1883,3172.9,3171.4,0.68291964]
[1763493137167,0.4668,3172.8,3171.9,0.405504]
[1763493137514,0.4668,3172.8,3171.2,0.90699264]
[1763493137515,0.4668,3172.8,3171.3,0.405504]
[1763493137708,0.4668,3172.8,3171.6,0.405504]
[1763493138213,0.4668,3172.8,3171.3,0.405504]
[1763493138719,0.4668,3172.8,3171.5,0.405504]
[1763493140210,0.1883,3172.9,3171.5,0.405504]
[1763493140414,0.4668,3172.8,3171.5,0.405504]
[1763493144551,0.002,3173.8,3171.5,0.405504]
[1763493144552,0.4594,3173.2,3171.8,0.405504]
[1763493144724,0.4594,3173.2,3171.7,6.78979419]
[1763493144725,0.1994,3172.9,3172.0,0.405504]
[1763493145125,0.4594,3172.8,3171.7,0.4594]
[1763493145644,0.4594,3172.8,3171.3,0.405504]
[1763493145847,0.4594,3172.8,3171.3,0.864904]
[1763493146161,0.4594,3172.8,3171.5,0.405504]
[1763493148654,0.4594,3172.8,3171.5,0.406504]
[1763493148950,0.4614,3172.8,3171.5,0.406504]
[1763493149368,0.4614,3172.8,3171.6,0.405504]
[1763493150015,0.002,3172.8,3171.5,0.406504]
[1763493150221,0.4594,3172.7,3171.5,0.406504]
[1763493151052,0.002,3172.8,3171.5,0.406504]
[1763493151364,0.002,3172.8,3171.9,1.31249664]
[1763493151518,0.002,3172.8,3172.1,0.405504]
[1763493152721,0.002,3172.8,3172.1,0.62184389]
[1763493152926,0.002,3172.8,3172.0,0.405504]
[1763493153529,0.3364,3173.2,3172.1,0.1597]
[1763493153726,0.01259641,3174.3,3172.1,0.1597]
[1763493153931,1.31249664,3174.1,3172.0,0.62350547]
[1763493154237,0.90699264,3173.9,3171.9,0.405504]
[1763493154558,1.08346536,3173.9,3171.9,0.405504]
[1763493154776,0.1994,3173.8,3171.9,0.405504]
[1763493154930,7.405503,3173.7,3171.8,0.1597]
[1763493155136,0.67895365,3173.6,3171.5,0.406504]
[1763493155332,0.1994,3173.8,3171.5,0.406504]
[1763493155652,0.4594,3173.7,3171.5,0.882004]
[1763493156233,1.13835365,3173.7,3171.5,0.406504]
[1763493156435,0.4594,3173.7,3171.7,0.405504]
[1763493156635,0.4969,3173.6,3171.7,1.04170015]
[1763493156860,0.4969,3173.6,3171.7,0.405504]
[1763493157244,0.4969,3173.6,3171.8,0.4712]
[1763493157449,0.4969,3173.6,3171.9,0.03152684]
[1763493157730,0.4969,3173.6,3171.9,0.405504]
[1763493157935,0.4969,3173.6,3172.0,0.4712]
[1763493158134,0.4969,3173.6,3172.1,0.03152485]
[1763493158337,0.4969,3173.6,3172.2,0.1597]
[1763493159069,0.4969,3173.6,3172.3,0.876704]
[1763493160133,0.4969,3173.6,3172.2,0.1597]
[1763493162370,0.4969,3173.6,3171.9,0.405504]
[1763493162901,0.4969,3173.6,3171.8,0.405504]
[1763493163083,0.4969,3173.6,3171.9,0.32660516]
[1763493166168,0.4969,3173.6,3171.8,0.405504]
[1763493166666,0.405504,3173.5,3171.5,0.9489886]
[1763493166987,0.405504,3173.3,3171.5,0.9489886]
[1763493167163,0.84798726,3173.2,3171.5,0.001]
[1763493167360,0.97580621,3173.1,3171.5,0.001]
[1763493167562,1.02472323,3173.0,3171.5,0.001]
[1763493167806,0.29575388,3172.9,3171.5,0.001]
[1763493167988,0.29575388,3172.8,3171.5,0.001]
[1763493168294,0.29575388,3172.7,3171.9,0.001]
[1763493168494,0.29575388,3172.6,3171.9,0.001]
[1763493168701,0.4566,3172.0,3171.9,0.001]
[1763493170063,0.9535,3172.0,3171.9,0.001]
[1763493170300,0.4566,3172.0,3171.9,0.001]
[1763493170487,0.86293946,3172.9,3171.9,0.001]
[1763493170488,0.4969,3172.7,3171.9,0.4674]
[1763493170687,0.29561548,3172.6,3172.0,0.03152585]
[1763493170887,0.29561548,3172.5,3172.0,0.03152585]
[1763493171199,0.79251548,3172.6,3172.0,0.03152585]
[1763493171375,0.29561548,3172.5,3172.0,0.03152585]
[1763493171766,0.4969,3172.5,3172.0,0.03152585]
[1763493172495,0.6787,3172.9,3171.9,0.001]
[1763493172700,0.29551867,3172.8,3171.9,0.001]
[1763493172891,0.29551867,3172.7,3171.9,0.001]
[1763493173066,0.79241867,3172.8,3171.9,0.001]
[1763493173266,0.79241867,3172.7,3171.9,0.001]
[1763493173469,0.29551867,3172.6,3171.9,0.001]
[1763493173693,0.79241867,3172.6,3171.9,0.001]
[1763493173926,0.4566,3172.0,3171.9,0.001]
[1763493174707,0.9535,3172.0,3171.9,0.001]
[1763493175035,0.4566,3172.0,3171.9,0.001]
[1763493175922,0.9535,3172.0,3171.9,0.001]
[1763493176296,0.4566,3172.0,3171.9,0.001]
[1763493179603,0.9535,3172.0,3171.9,0.001]
[1763493179802,0.4566,3172.0,3171.9,0.001]
[1763493180012,0.9535,3172.0,3171.9,0.001]
[1763493180207,1.24889724,3172.0,3171.9,0.001]
[1763493181815,5.21963824,3172.0,3171.5,0.001]
[1763493182052,5.21963824,3172.0,3169.8,0.1597]
[1763493182053,0.4531,3170.9,3169.7,0.001]
[1763493182261,0.449,3170.5,3169.7,0.001]
[1763493182857,0.005,3170.1,3169.7,0.001]
[1763493183209,0.5019,3170.1,3169.7,0.001]
[1763493183412,0.7963461,3170.1,3169.7,0.001]
[1763493183826,0.5019,3170.1,3169.7,0.001]
[1763493186547,0.5366,3170.9,3170.0,0.9492]
[1763493186751,0.5366,3170.9,3170.1,0.1668]
[1763493187255,0.5366,3170.9,3170.0,0.001]
[1763493187256,0.455,3170.2,3170.0,0.001]
[1763493187414,0.0046,3170.1,3170.0,0.001]
[1763493187818,0.4945,3170.1,3170.0,0.001]
[1763493188054,0.4899,3170.5,3170.0,0.001]
[1763493188228,0.455,3170.1,3170.0,0.001]
[1763493188417,0.4899,3170.5,3170.0,0.001]
[1763493188617,0.0467,3170.9,3170.0,0.001]
[1763493188947,0.5366,3170.9,3170.0,0.001]
[1763493190353,0.5366,3170.9,3170.1,0.1668]
[1763493190552,0.0467,3170.9,3170.1,0.1668]
[1763493190748,0.1867,3171.2,3170.2,0.49054375]
[1763493190948,0.1867,3171.2,3170.2,0.459]
[1763493191154,0.4899,3171.1,3170.2,0.459]
[1763493192245,0.4899,3171.1,3170.1,0.1668]
[1763493192549,0.4899,3171.1,3170.0,0.001]
[1763493192722,0.4899,3171.1,3170.1,0.1668]
[1763493194122,0.4899,3171.5,3170.2,0.459]
[1763493200132,0.4899,3171.9,3170.4,0.405504]
[1763493200329,0.4899,3171.9,3170.8,6.40305011]
[1763493200555,0.4899,3171.9,3170.6,0.405504]
[1763493200762,0.4899,3171.9,3170.6,0.862104]
[1763493201063,0.4899,3171.9,3170.7,0.4566]
[1763493203846,0.4899,3171.9,3170.8,6.40305011]
[1763493204048,0.002,3171.5,3171.3,6.40305011]
[1763493204249,0.002,3171.5,3171.4,1.12]
[1763493205161,0.002,3171.5,3171.4,0.6634]
[1763493207041,0.002,3171.5,3171.4,1.12]
[1763493207969,0.002,3171.5,3171.4,1.525504]
[1763493208248,0.002,3171.5,3171.4,2.31835941]
[1763493208447,0.002,3171.9,3171.5,0.405504]
[1763493208668,0.002,3171.9,3171.8,0.493]
[1763493209242,0.002,3171.9,3171.8,7.35265011]
[1763493209471,0.002,3172.2,3171.8,7.35265011]
[1763493209674,0.002,3172.2,3172.1,0.493]
[1763493210740,0.002,3172.2,3171.3,0.1704]
[1763493210741,0.9512,3172.2,3171.3,0.1704]
[1763493210945,0.1486,3172.0,3171.3,0.1704]
[1763493211418,0.1941,3171.9,3171.3,0.1704]
[1763493212227,0.4977,3172.1,3171.3,0.1704]
[1763493212383,0.002,3172.2,3171.3,0.627]
[1763493212785,0.4997,3172.2,3171.3,0.627]
[1763493213711,0.4997,3172.2,3171.3,0.70300501]
[1763493213895,0.4997,3172.2,3170.8,0.90699264]
[1763493214084,0.4997,3172.2,3171.2,0.1704]
[1763493215413,0.002,3172.2,3171.4,0.405504]
[1763493215601,0.002,3172.2,3172.1,0.493]
[1763493218117,0.002,3172.2,3172.1,0.9801]
[1763493219718,0.002,3172.2,3171.8,0.90699264]
[1763493219719,0.002,3172.2,3171.4,0.405504]
[1763493219920,0.002,3172.2,3172.1,0.484]
[1763493220325,0.002,3172.2,3172.1,1.376604]
[1763493220498,0.002,3172.2,3172.1,1.60496366]
[1763493221328,0.1867,3173.2,3172.2,0.405504]
[1763493221527,0.4725,3174.3,3173.1,0.6651]
[1763493221694,0.4725,3174.1,3173.3,0.484]
[1763493222226,0.4725,3174.1,3173.3,0.9711]
[1763493222532,0.4725,3174.5,3173.5,6.40305011]
[1763493222731,0.4725,3174.5,3173.6,0.64030501]
[1763493223113,0.4745,3174.2,3173.6,0.64030501]
[1763493223335,0.4745,3174.2,3173.5,6.40305011]
[1763493223517,0.002,3174.2,3173.5,6.89015011]
[1763493224341,0.002,3174.2,3173.6,0.90699264]
[1763493225913,0.002,3174.2,3173.5,6.40305011]
[1763493226115,0.002,3174.2,3173.6,0.4871]
[1763493226318,0.002,3174.2,3173.7,0.68901501]
[1763493229217,0.002,3174.2,3173.5,6.40305011]
[1763493229630,0.002,3174.2,3173.3,6.40305011]
[1763493229817,0.4745,3174.2,3173.3,6.40305011]
[1763493233011,0.4745,3174.2,3173.1,0.1811]
[1763493233921,0.4745,3174.2,3173.0,0.892604]
[1763493233922,0.4745,3174.2,3172.8,6.40305011]
[1763493234122,0.4745,3174.2,3172.8,7.11017512]
[1763493234558,0.4745,3174.2,3172.4,0.1811]
[1763493234718,0.4745,3174.2,3172.6,0.90699264]
[1763493234919,0.4745,3174.2,3172.5,6.40305011]
[1763493235119,0.4745,3174.2,3172.4,0.1811]
[1763493235446,0.76838909,3174.2,3172.4,0.6682]
[1763493235761,0.29388909,3174.1,3172.4,0.6682]
[1763493235964,0.76638909,3174.1,3172.4,0.6682]
[1763493236277,0.29388909,3174.0,3172.5,6.92167099]
[1763493236413,0.76638909,3174.0,3172.6,0.7102771]
[1763493236617,0.48628909,3173.9,3172.6,1.1973771]
[1763493236816,0.95878909,3173.9,3172.7,0.51861889]
[1763493237065,0.4725,3173.8,3172.7,0.51861889]
[1763493237721,0.4725,3173.8,3172.7,0.4871]
[1763493238634,0.4725,3173.8,3172.8,0.0315179]
[1763493238870,0.1924,3173.9,3172.9,0.4871]
[1763493239069,0.6649,3173.9,3173.0,0.03151591]
[1763493239271,0.1924,3173.9,3173.1,0.4871]
[1763493239557,0.002,3174.2,3173.5,6.40305011]
[1763493240553,0.002,3174.2,3173.5,6.89015011]
[1763493241323,0.002,3174.2,3173.6,0.51860995]
[1763493241530,0.002,3174.2,3173.6,0.4871]
[1763493243168,0.4622,3173.7,3173.2,1.09451901]
[1763493243372,0.4725,3174.1,3173.3,0.20015117]
[1763493244630,0.4725,3174.1,3173.2,0.68901501]
[1763493244631,0.6158,3173.4,3173.2,0.68901501]
[1763493244831,0.192,3173.3,3172.6,1.1973771]
[1763493245138,0.29426988,3174.0,3173.3,0.484]
[1763493245339,0.002,3174.2,3174.0,0.405504]
[1763493245538,0.002,3174.2,3174.1,0.889504]
[1763493245765,0.002,3174.2,3174.1,3.1961137]
[1763493246139,0.002,3174.2,3174.1,2.3035097]
[1763493246525,0.002,3174.2,3174.1,1.39651706]
[1763493246857,0.002,3174.2,3174.1,0.91251706]
[1763493247869,0.9746,3174.2,3173.3,6.40305011]
[1763493248066,0.1178,3174.0,3173.3,6.40305011]
[1763493248272,0.1178,3174.0,3173.4,0.90699264]
[1763493248452,0.1811,3173.9,3173.4,0.90699264]
[1763493248764,0.6809,3173.9,3173.0,0.1668]
[1763493249009,0.6809,3173.9,3173.0,0.91854195]
[1763493249171,0.4998,3173.8,3173.0,0.91854195]
[1763493249666,0.4998,3173.8,3173.0,0.75174195]
[1763493250272,0.4728,3173.1,3172.6,0.4998]
[1763493250473,0.6539,3172.7,3171.1,0.001]
[1763493250678,0.1401,3172.2,3171.1,0.001]
[1763493251169,0.6399,3172.2,3171.1,0.001]
[1763493251737,1.31888857,3172.2,3171.1,0.001]
[1763493251932,0.6399,3172.2,3171.1,0.001]
[1763493252346,0.1401,3172.2,3171.3,0.1704]
[1763493252547,0.6399,3172.2,3171.4,6.40305011]
[1763493252758,0.6399,3172.2,3171.1,0.001]
[1763493253480,0.6399,3172.2,3171.1,0.1714]
[1763493253783,0.1811,3172.7,3171.4,6.40305011]
[1763493253950,0.4728,3172.2,3171.5,0.4869]
[1763493254352,0.9726,3172.2,3171.5,0.001]
[1763493258287,0.9726,3172.2,3172.0,0.001]
[1763493258496,0.4728,3172.2,3172.0,0.001]
[1763493260559,0.4998,3172.5,3172.0,0.001]
[1763493261581,0.6587,3173.0,3172.1,0.1821]
[1763493262270,0.6587,3173.0,3172.1,0.6624]
[1763493262271,0.187,3173.0,3172.1,0.6624]
[1763493262461,0.6587,3173.0,3172.1,0.1821]
[1763493265703,0.4717,3172.9,3172.1,0.1821]
[1763493266586,0.187,3173.0,3172.1,0.1821]
[1763493267187,0.187,3173.0,3172.1,0.6624]
[1763493267597,0.187,3173.0,3172.2,0.4803]
[1763493268405,0.4717,3173.2,3172.2,0.4803]
[1763493268606,0.6587,3173.2,3172.2,0.4803]
[1763493268808,0.187,3173.2,3172.2,0.4803]
[1763493270010,0.4717,3173.5,3172.3,0.405504]
[1763493270213,0.6528,3173.9,3172.3,0.405504]
[1763493270381,0.4717,3173.8,3172.4,0.65957966]
[1763493270779,0.4717,3173.8,3172.5,0.4803]
[1763493273414,0.4717,3173.8,3172.2,0.4803]
[1763493273616,0.405504,3173.5,3172.1,0.001]
[1763493273813,0.69888522,3173.5,3172.1,0.001]
[1763493274111,0.4717,3173.4,3172.1,0.001]
[1763493275616,0.76528297,3173.4,3172.1,0.001]
[1763493275915,0.29358297,3173.4,3172.1,0.001]
[1763493276123,0.4717,3173.3,3172.1,0.001]
[1763493278015,0.76528297,3173.3,3172.1,0.001]
[1763493278410,0.4638,3173.2,3172.1,0.001]
[1763493280218,0.29358297,3173.1,3172.1,0.001]
[1763493280611,0.4638,3173.0,3172.1,0.001]
[1763493281010,0.1888,3172.9,3172.1,0.001]
[1763493281327,0.1888,3172.9,3172.1,0.1821]
[1763493281631,0.6526,3172.9,3172.1,0.1821]
[1763493282127,0.4638,3172.8,3172.1,0.001]
[1763493282444,0.4622,3172.2,3172.1,0.001]
[1763493283112,0.4638,3172.6,3172.1,0.001]
[1763493284596,0.4622,3172.2,3172.1,0.001]
[1763493285014,0.926,3172.2,3172.1,0.001]
[1763493289010,0.4622,3172.2,3172.1,0.001]
[1763493291320,0.926,3172.2,3172.1,0.001]
[1763493291518,1.22145016,3172.2,3172.1,0.001]
[1763493295016,0.75765016,3172.2,3172.1,0.001]
[1763493295504,0.926,3172.2,3172.1,0.001]
[1763493295708,1.22145016,3172.2,3172.1,0.001]
[1763493298301,0.29545016,3172.2,3172.1,0.4656]
[1763493298508,1.9437799,3172.9,3172.1,0.4656]
[1763493298509,0.4638,3172.7,3172.1,0.4656]
[1763493298747,0.29545016,3172.6,3172.1,0.001]
[1763493299062,0.4622,3172.2,3172.1,0.001]
[1763493299652,0.4638,3172.6,3172.1,0.001]
[1763493299653,0.4638,3172.6,3172.1,0.4656]
[1763493299823,0.29514287,3172.5,3172.1,0.4656]
[1763493300544,0.75894287,3172.8,3172.1,0.4656]
[1763493300850,0.29514287,3172.7,3172.1,0.4656]
[1763493301145,0.29514287,3172.6,3172.1,0.4656]
[1763493301348,0.29514287,3172.5,3172.1,0.4656]
[1763493301509,0.75894287,3172.6,3172.1,0.4656]
[1763493301709,0.29514287,3172.5,3172.1,0.4656]
[1763493301909,0.29514287,3172.7,3172.1,0.4656]
[1763493302104,0.4622,3172.2,3172.1,0.001]
[1763493302841,0.29514287,3172.3,3172.1,0.001]
[1763493303048,0.29514287,3172.3,3172.2,0.1811]
[1763493303247,0.29514287,3172.8,3172.2,1.0984]
[1763493303449,0.29514287,3172.7,3172.2,0.6457]
[1763493303755,0.29514287,3172.6,3172.2,0.6457]